Cogmind - Beta 13 @@@ ROGUE MODE // 2024.06.20 @ 21:57:17 Player: CONNOR_M Result: Destroyed by 8R-PRA(R) with Subdweller Machine Gun Performance ------------- Evolutions (0) 0 Regions Visited (2) 400 Robots Destroyed (26) 130 Value Destroyed (648) 648 Prototype IDs (0) 0 Alien Tech Used (0) 0 Bonus (0) 0 TOTAL SCORE: 1178 Bonus ------- None Cogmind --------- Core Integrity 0/250 Matter 224/300 Energy 100/100 System Corruption 0% Temperature Cool (0) Movement Core (50) Location -10/Subcaves Parts ------- > --- POWER (1) -------- (None) > --- PROPULSION (2) --- (None) > --- UTILITY (2) ------ (None) > --- WEAPON (2) ------- Hammer > --- INVENTORY (5) ---- Light Ion Engine Makeshift Power Source Humpback Improved Terrain Scanner Peak State ------------ > --- POWER ------------ Ion Engine > --- PROPULSION ------- Light Treads Subdweller Monowheel > --- UTILITY ---------- High-capacity Storage Unit Power Shielding > --- WEAPON ----------- Beam Cannon Subdweller Machine Gun > --- INVENTORY -------- Ion Engine Light Ion Engine Small Storage Unit Structural Scanner Structural Scanner Sensor Array Improved Terrain Scanner Medium Laser Assault Rifle Hammer Scrap Shield Fragment Scrap Shield Fragment Scrap Shield Fragment Scrap Shield Fragment Scrap Shield Fragment Scrap Shield Fragment [Rating: 11] Favorites ----------- Power Ion Engine Engine Ion Engine Propulsion Subdweller Monowheel Treads Light Treads Wheel Subdweller Monowheel Utility High-capacity Storage Unit Device Seismic Detector Storage High-capacity Storage Unit Protection Power Shielding Weapon Hammer Energy Gun Medium Laser Energy Cannon Beam Cannon Ballistic Gun Subdweller Machine Gun Launcher Grenade Launcher Impact Weapon Hammer Build | -11 -10 -10 ------- Run | Yrd Mat Sub Slots Evolved . | . . . Power . | . . . Propulsion . | . . . Utility . | . . . Weapon . | . . . Parts Attached 37 | 7 5 25 Power 4 | 1 . 3 Engine 4 | 1 . 3 Core . | . . . Reactor . | . . . Propulsion 11 | 2 3 6 Treads 5 | 2 1 2 Leg . | . . . Wheel 6 | . 2 4 Hover . | . . . Flight . | . . . Utility 6 | 2 2 2 Device 1 | 1 . . Storage 4 | 1 1 2 Processor . | . . . Hackware . | . . . Protection 1 | . 1 . Artifact . | . . . Weapon 16 | 2 . 14 Energy Gun 2 | 1 . 1 Energy Cannon 1 | . . 1 Ballistic Gun 6 | 1 . 5 Ballistic Cannon . | . . . Launcher 1 | . . 1 Special Weapon . | . . . Impact Weapon 6 | . . 6 Slashing Weapon . | . . . Piercing Weapon . | . . . Special Melee Weapon . | . . . Unidentified Prototypes . | . . . Parts Lost 9 | . 1 8 Power 2 | . . 2 Propulsion 4 | . . 4 Utility 2 | . 1 1 Weapon 1 | . . 1 Highest Loss Streak 2 | . 1 2 To Critical Strikes . | . . . Average Slot Usage (%) 79 | . 99 76 Engine 12 | . 14 11 Treads 4 | . 1 5 Wheel 13 | . 26 11 Storage 13 | . 14 13 Protection 5 | . 8 5 Energy Gun 2 | . 14 . Energy Cannon 3 | . . 4 Ballistic Gun 14 | . 14 14 Impact Weapon 6 | . . 7 Naked Turns 2 | . . 2 Heaviest Build 53 | 15 50 53 Greatest Support 40 | 40 40 40 Greatest Overweight (x) 16 | . 2 16 Average Overweight (x) 1 | . 1 1 Largest Inventory Capacity 35 | 8 20 35 Average Capacity 18 | 5 19 19 Most Carried 19 | 4 13 19 Average Carried 13 | 2 10 14 Final Capacity 20 | 8 20 5 Final Carried 13 | 4 13 5 Class Distribution -------------------- 100% | Mutant Dominant Class ---------------- Mutant | -10/Materials Mutant | -10/Subcaves Resources | -11 -10 -10 ----------- Run | Yrd Mat Sub Matter Collected 745 | 186 234 325 Remotely . | . . . Salvage Created 669 | 41 353 275 Parts 42 | 4 20 18 Haulers Intercepted 1 | . 1 . Recyclers Shooed . | . . . Parts Field Recycled . | . . . Retrieved Matter . | . . . Parts Self-Destructed 12 | . . 12 Prevented . | . . . Kills | -11 -10 -10 ------- Run | Yrd Mat Sub Combat Hostiles Destroyed 20 | . 9 11 Guns 15 | . 9 6 Cannons 2 | . . 2 AOE 3 | . . 3 Classes Destroyed 9 | 1 5 3 Tunneler 2 | 2 . . Hauler 1 | . 1 . Operator 1 | . 1 . Watcher 2 | . 2 . Swarmer 7 | . 5 2 Grunt 4 | . 4 . Sentry 1 | . . 1 Cobbler 1 | . . 1 Subdweller 8 | . . 8 Best Kill Streak 4 | 2 4 3 Combat Bots Only 3 | . 3 3 Max Kills in Single Turn 2 | 1 1 2 Gunslinging . | . . . Exploded 2 | . . 2 Melee . | . . . Uniques/NPCs Destroyed . | . . . Combat | -11 -10 -10 -------- Run | Yrd Mat Sub Hostile Shots Fired 116 | . 48 68 Missed 38 | . 15 23 Damage Taken 1339 | . 315 1024 Core 250 | . 22 228 Absorbed by Shields . | . . . Redirected to Shielding 62 | . 3 59 Core Remaining (%) 100 | 100 . . Volleys Fired 78 | 5 30 43 Largest 2 | 2 2 2 Hottest 90 | 70 70 90 Shots Fired 147 | 10 60 77 Gun 116 | 10 60 46 Cannon 22 | . . 22 Launcher 9 | . . 9 Special . | . . . Kinetic 80 | 5 30 45 Thermal 58 | 5 30 23 Explosive 9 | . . 9 Electromagnetic . | . . . Robot Hit Streak 13 | 3 9 13 Robot Miss Streak 6 | 2 6 2 Penetration Max . | . . . Secondary Targets . | . . . Shots Hit Robots 101 | 5 37 59 Core Hits 41 | 2 18 21 Critical Kills . | . . . Critical Parts Destroyed . | . . . Critical Strikes 5 | 1 4 . Burn 5 | 1 4 . Melee Attacks 11 | . . 11 Impact 11 | . . 11 Slashing . | . . . Piercing . | . . . Sneak Attacks . | . . . Combat Hostiles . | . . . Follow-up Attacks . | . . . Damage Inflicted 1928 | 66 475 1387 Guns 1189 | 66 475 648 Cannons 302 | . . 302 Explosions 419 | . . 419 Melee 18 | . . 18 Ramming . | . . . Kinetic 915 | 41 226 648 Thermal 576 | 25 249 302 Explosive 419 | . . 419 Electromagnetic . | . . . Impact 18 | . . 18 Slashing . | . . . Piercing . | . . . Highest Corruption . | . . . Average Corruption . | . . . Corruption Purged . | . . . Corruption Blocked . | . . . Overload Shots . | . . . Overflow Damage . | . . . Projectiles . | . . . Explosions . | . . . Melee . | . . . Knockbacks . | . . . Impact . | . . . Kinetic . | . . . Secondary . | . . . Self-Inflicted Damage 4 | . . 4 Shots 1 | . . 1 Rammed . | . . . Targets Rammed . | . . . Kicked . | . . . Crushed . | . . . Highest Temperature 96 | 45 96 20 Average Temperature 31 | 23 33 15 Received Heat Transfer 207 | . 90 117 Siege Activations . | . . . Robots Corrupted . | . . . Combat Hostiles . | . . . Parts Fried . | . . . Impact Corruptions . | . . . Robots Melted . | . . . Combat Hostiles . | . . . Parts Melted 6 | 3 3 . Heat Transferred 1813 | 148 1036 629 Parts Sabotaged . | . . . Parts Stolen . | . . . Parts Stripped . | . . . Power Chain Reactions . | . . . Alert | -11 -10 -10 ------- Run | Yrd Mat Sub Peak Influence 328 | 10 328 . Initial 6 | . 6 . Average 119 | 2 144 . Maximum Alert Level 1 | . 1 . Low Security (%) 75 | 100 70 . Level 1 24 | . 29 . Level 2 . | . . . Level 3 . | . . . Level 4 . | . . . Level 5 . | . . . High Security . | . . . Max Security . | . . . Squads Dispatched . | . . . Investigation . | . . . Extermination . | . . . Reinforcement . | . . . Assault . | . . . Garrison . | . . . Intercept . | . . . Searches Triggered . | . . . Construction Impeded . | . . . Haulers Reinforced . | . . . Active Scanning Responses . | . . . Cargo Convoy Interrupts . | . . . Stealth | -11 -10 -10 --------- Run | Yrd Mat Sub Distress Signals 2 | . 2 . Communications Jammed . | . . . Distress Signals . | . . . Times Spotted 29 | . 16 13 Peak Tracking Total 5 | . 5 3 Tactical Retreats 5 | . 3 2 Traps | -11 -10 -10 ------- Run | Yrd Mat Sub Traps Triggered . | . . . Indirectly . | . . . Trap Hack Attempts . | . . . Triggered . | . . . Disarmed . | . . . Reprogrammed . | . . . Reused . | . . . Traps Extracted . | . . . Installed . | . . . Triggered . | . . . Machines | -11 -10 -10 ---------- Run | Yrd Mat Sub Machines Disabled . | . . . Max in Single Turn . | . . . Machines Repaired . | . . . Machines Dismantled . | . . . Machines Sabotaged . | . . . Overloaded Fab Kills . | . . . Hacking | -11 -10 -10 --------- Run | Yrd Mat Sub Machines Accessed 5 | . 4 1 Terminals 4 | . 4 . Fabricators . | . . . Repair Stations . | . . . Recycling Units . | . . . Scanalyzers . | . . . Garrison Access . | . . . Total Hacks 14 | . 11 3 Successful 7 | . 4 3 Failed 7 | . 7 . Catastrophic 2 | . 2 . Database Lockouts . | . . . Manual 5 | . 5 . Terminals 11 | . 11 . Fabricators . | . . . Repair Stations . | . . . Recycling Units . | . . . Scanalyzers . | . . . Garrison Access . | . . . Terminal Hacks 6 | . 3 3 Record 3 | . . 3 Branch Access Points 1 | . 1 . Locate Traps 2 | . 2 . Fabricator Hacks . | . . . Repair Station Hacks . | . . . Recycling Unit Hacks . | . . . Scanalyzer . | . . . Garrison Access Hacks . | . . . Unauthorized Hacks 1 | . 1 . Terminals 1 | . 1 . Operators 1 | . 1 . Fabricators . | . . . Repair Stations . | . . . Recycling Units . | . . . Scanalyzers . | . . . Garrison Access . | . . . Data Cores Recovered 1 | . 1 . Used . | . . . Hacking Detections 4 | . 4 . Full Trace Events . | . . . Feedback Events . | . . . Feedback Blocked . | . . . Robot Schematics Acquired . | . . . Robots Built . | . . . Authchips . | . . . Time . | . . . Total Robot Build Rating . | . . . Part Schematics Acquired . | . . . Parts Built . | . . . Authchips . | . . . Time . | . . . Total Part Build Rating . | . . . Parts Repaired . | . . . Time . | . . . Parts Recycled . | . . . Recycled Matter . | . . . Retrieved Matter . | . . . Retrieved Components . | . . . Parts Scanalyzed . | . . . Part Schematics Acquired . | . . . Parts Damaged . | . . . Bothacking | -11 -10 -10 ------------ Run | Yrd Mat Sub Used RIF Installer . | . . . Robots Hacked . | . . . Non-combat . | . . . Combat . | . . . Robot Hacks Applied . | . . . Relay Couplers Released . | . . . Fabnet Peak Effective % . | . . . Robots Rewired . | . . . Allies Hacked . | . . . Hacks Repelled . | . . . Allies | -11 -10 -10 -------- Run | Yrd Mat Sub Total Allies . | . . . Largest Group . | . . . Highest-Rated Group . | . . . Highest-Rated Ally . | . . . Total Orders . | . . . Ally Attacks . | . . . Total Damage . | . . . Kills . | . . . Allies Corrupted . | . . . Allies Melted . | . . . Intel | -11 -10 -10 ------- Run | Yrd Mat Sub Robot Analysis Total . | . . . Derelict Logs Recovered 1 | . . 1 Drone Launches . | . . . Drone Recoveries . | . . . Exploration | -11 -10 -10 ------------- Run | Yrd Mat Sub Turns Passed 3931 | 126 592 3213 Spaces Moved 2400 | 65 271 2064 Core 268 | 6 . 262 Treads 237 | 59 12 166 Legs . | . . . Wheels 1895 | . 259 1636 Hover . | . . . Flight . | . . . Fastest Speed 50 | 50 110 50 Average Speed 138 | 149 112 141 Slowest Speed 850 | 160 160 850 Overloaded Moves . | . . . Propulsion Burnouts . | . . . Robots Hopped . | . . . Cave-ins Triggered . | . . . Exploration Rate (%) 48 | 6 48 90 Regions Visited 2 Branch Regions 1 Pre-discovered Areas 2 | . . 2 Known Exits Taken . | . . . Unknown Exits Taken 2 | 1 1 . Scrap Searched 2 | . . 2 Spaces Dug . | . . . Terrain Destroyed 31 | . . 31 Melee . | . . . Projectile 1 | . . 1 AOE 30 | . . 30 Terrain Rammed . | . . . Walls Destroyed . | . . . Machines Disabled . | . . . Actions | -11 -10 -10 --------- Run | Yrd Mat Sub Total 2847 | 81 497 2269 Wait 266 | . 182 84 Move 2398 | 64 270 2064 Hop . | . . . Pick Up 43 | 5 10 28 Fast Attach 10 | 6 . 4 Attach 14 | 1 1 12 Detach 4 | . . 4 Swap 13 | . 4 9 Drop 10 | . . 10 Fire 78 | 5 30 43 Melee 11 | . . 11 Ram . | . . . Kick . | . . . Crush . | . . . Escape Stasis . | . . . Rewire . | . . . Trap . | . . . Miscellaneous . | . . . Route ------- -11/Scrapyard -10/Materials (discovered 4 exits: [*Mat x2] / Min / *Sub) -10/Subcaves (discovered 2 exits: [*Mat x2]) History --------- Turn | Location | Event 28 | -11/Scrapyard | Discovered new exit (range 15) 127 | -11/Scrapyard | Entered Materials 306 | -10/Materials | Build established: Mutant 392 | -10/Materials | Discovered new exit (range 13) 479 | -10/Materials | Identified exit to Mines 535 | -10/Materials | Discovered new exit (range 12) 698 | -10/Materials | Discovered new exit (range 6) 719 | -10/Materials | Entered Subcaves 730 | -10/Subcaves | Shifting Twisted Machinery released Sub. Monowheel 735 | -10/Subcaves | Shifting Twisted Machinery released Sub. Monowheel 780 | -10/Subcaves | A swath of the cavern ceiling suddenly collapsed 1063 | -10/Subcaves | Core integrity fell below 50% 1513 | -10/Subcaves | Core integrity fell below 20% 1564 | -10/Subcaves | Discovered new exit (range 16) 1646 | -10/Subcaves | Visited Clippyterm 1650 | -10/Subcaves | Learned location of Deep Caves (-6) 1872 | -10/Subcaves | Discovered new exit (range 15) 2023 | -10/Subcaves | Learned Materials interactive machine intel 3115 | -10/Subcaves | Learned location of Zion (-6) 3115 | -10/Subcaves | Met a Zionite searching for "candidates" 3903 | -10/Subcaves | Released all parts (4) 3932 | -10/Subcaves | Destroyed by 8R-PRA(R) with Subdweller Machine Gun Last Messages --------------- 03115_ BM-WE0(z): "Hey you! It's really dangerous down here, I feel that you could die at any moment. For your health and safety might I suggest a trip to Zion?" World map updated: -6/Zion. 03154_ Acquired Battle Cannon. 03901_ Sub. Monowheel shoots sparks and powers down. 03902_ Dropped Broken Sub. Monowheel. 03903_ Subatomizers dissect the Broken Sub. Monowheel. 03903_ Released Hammer. 03903_ Released Ion Engine. 03903_ Released Hcp. Storage Unit. 03903_ Released Battle Rifle. 03905_ Acquired Hammer. 03928_ Searching scrap... 03928_ Found Mak. Power Source. 03928_ Found Sub. Machine Gun. 03928_ Found 28 Matter. 03929_ Dropped Scrap Shield Fragment. 03929_ Acquired Mak. Power Source. 03930_ Acquired 28 matter. Map ----- +----------------------------------------------------+ | ???????????????##????? ###????# ##????? | | ????????????????????? #???????# ##???? | | ?????????????????????###????????# ##??? | | ????????????????????????????????# #??? | | ???????????????????????????????## #??? | | ???????????????????????????##### ##??? | | ??????????????????????????## ##??## | | ?????????????????????##??## ##?## # | | ????????????????????## ### ## #??# # | | ????????????????????# ## ##?# # | | ????????????????????# ### ### | | ????????????????????# ##?# ## | | ??????????????????### ##??## | | ??????????????????# ##????# # | | ??????????????????# ###????# #### # | | ??????????????????## #?????# #### # | | ???????????????????## #?????## ### | | ????????????????????## #??????#### | | ?????????????????????# ##???????## | | ?????????????????????# #????????# | | ?????????????????????## #??###???# | | ???????????????######?###### ###?# | | ?????????????### <&<### ### | | ????????????##< <&### # # # | | ????????????# < <## # # ## | | ????????????#< << @[ <## # ###### | | ???????????#< <# #????? | | ???????????# ## ## ##????? | | ???????????# $$ # &#" # #####?????? | | ???????????#< $#$ # ## ##?????????? | | ???????????#< $$$ # ### ##??????????? | | ???????????#